fUSD/lending_fUSD_20260116
["ID","MTS","AMOUNT","RATE_DAILY","PERIOD"]
[402133463,1768540232304,-10000.0,0.000179,2]
[402133464,1768540232313,-151.0,0.00017937,2]
[402133465,1768540232323,-151.0,0.00017937,2]
[402133466,1768540232332,-151.0,0.00017997,2]
[402133467,1768540232342,-151.0,0.00017997,2]
[402133468,1768540232351,-500.0,0.00017999,2]
[402133469,1768540232360,-500.86300642,0.00017999,2]
[402133470,1768540232369,-568.4,0.00018156,2]
[402133471,1768540232379,-185.61166214,0.00019078,2]
[402133472,1768540232388,-200.0,0.00019235,2]
[402133473,1768540232397,-42874.26404157,0.0001938,2]
[402133474,1768540232406,-1680.0,0.00019626,2]
[402133476,1768540232417,-861.58893145,0.00019727,2]
[402133478,1768540232426,-661.47354818,0.00019732,2]
[402133479,1768540232435,-174.51123852,0.0001988,2]
[402133480,1768540232444,-568.4,0.00020042,2]
[402133481,1768540232453,-26284.02,0.00020632,2]
[402133482,1768540232462,-1600.0,0.0002124,2]
[402133483,1768540232472,-1499.0,0.00021521,2]
[402133484,1768540232482,-861.58893145,0.00021837,2]
[402133485,1768540232491,-661.47354818,0.00021842,2]
[402133486,1768540232500,-151.0,0.00021918,2]
[402133487,1768540232509,-568.4,0.00021928,2]
[402133488,1768540232518,-151.0,0.00022466,2]
[402133489,1768540232528,-380.83569183,0.00022902,2]
[402133490,1768540232537,-151.0,0.00023014,2]
[402133491,1768540232546,-744.0,0.000231,3]
[402133492,1768540232556,-250.0,0.00023251,2]
[402133493,1768540232565,-151.0,0.00023562,2]
[402133494,1768540232575,-354.29,0.00023778,2]
[402133495,1768540232584,-568.4,0.00023815,2]
[402133496,1768540232594,-1600.0,0.00023895,2]
[402133497,1768540232603,-861.58893145,0.00023948,2]
[402133498,1768540232612,-661.47354818,0.00023952,2]
[402133499,1768540232622,-168.0,0.0002398,2]
[402133500,1768540232631,-151.45598284,0.0002411,2]
[402133501,1768540232640,-307.08441259,0.00024161,2]
[402133502,1768540232649,-1101.0,0.00024657,2]
[402133503,1768540232658,-17688.95272646,0.000248,2]
[402133504,1768540232670,-7839.14271676,0.000248,2]
[402133505,1768540232681,-3187.18357432,0.000248,2]
[402133506,1768540232700,-676.92004919,0.000248,2]
[402133507,1768540232711,-391.2107439,0.000248,2]
[402133508,1768540232722,-1905.14323361,0.000248,2]
[402133509,1768540232733,-1541.76684916,0.000248,2]
[402133510,1768540232744,-3710.18510261,0.000248,2]
[402133511,1768540238237,-174.51123852,0.0001988,2]
[402133512,1768540238246,-217.69598162,0.00024799,2]
[402133513,1768540238256,-15276.16045819,0.000248,2]
[402133514,1768540238265,-60465.99625672,0.000248,2]
[402133515,1768540238274,-354.29,0.00025148,2]
[402133516,1768540238283,-4305.0,0.00025212,2]
[402133517,1768540238292,-4847.822,0.00025483,2]
[402133518,1768540238301,-569.897,0.00025483,2]
[402133519,1768540238310,-568.4,0.00025701,2]
[402133520,1768540238320,-1101.0,0.00025954,2]
[402133521,1768540238333,-861.58893145,0.00026059,2]
[402133522,1768540238343,-661.47354818,0.00026062,2]
[402133523,1768540238352,-1000.0,0.00027075,2]
[402133524,1768540238360,-510.0,0.00027137,2]
[402133525,1768540238369,-1101.0,0.00027252,2]
[402133526,1768540238378,-3490.966,0.00027266,2]
[402133527,1768540238387,-904.761,0.00027266,2]
[402133528,1768540238396,-354.36419482,0.00027397,2]
[402133529,1768540238405,-568.4,0.00027587,2]
[402133530,1768540238414,-861.58893145,0.00028169,2]
[402133531,1768540238422,-661.47354818,0.00028172,2]
[402133532,1768540238431,-166.66,0.00028249,2]
[402133533,1768540238440,-200.0,0.00028307,2]
[402133534,1768540238449,-500.0,0.00028307,2]
[402133535,1768540238458,-5463.0,0.000286,5]
[402133536,1768540238467,-1101.0,0.00028615,5]
[402133537,1768540238476,-150.0,0.0002863,2]
[402133538,1768540238485,-166.66,0.00029182,2]
[402133539,1768540238494,-257.0,0.000294,2]
[402133540,1768540238503,-568.4,0.00029473,2]
[402133541,1768540238514,-5358.74990381,0.0003,3]
[402133542,1768540238524,-166.66,0.00030114,2]
[402133543,1768540238533,-861.58893145,0.0003028,2]
[402133544,1768540238542,-661.47354818,0.00030282,2]
[402133545,1768540238552,-197.94498684,0.00030383,120]
[402133546,1768540238562,-166.66,0.00031047,2]
[402133547,1768540238571,-568.4,0.00031359,2]
[402133548,1768540238581,-150.0,0.000314,30]
[402133549,1768540238590,-150.0,0.00031493,2]
[402133550,1768540238600,-600.0,0.00031542,7]
[402133551,1768540238609,-500.0,0.00031603,7]
[402133552,1768540238619,-403.0,0.000318,2]
[402133553,1768540238629,-1600.0,0.0003186,120]
[402133554,1768540238638,-500.0,0.00031935,7]
[402133555,1768540238648,-166.66,0.00031979,2]
[402133556,1768540238658,-500.0,0.00032019,7]
[402133557,1768540238668,-600.0,0.00032094,7]
[402133558,1768540238677,-500.0,0.00032201,7]
[402133559,1768540238687,-600.0,0.00032295,7]
[402133560,1768540238697,-500.0,0.00032366,7]
[402133561,1768540238707,-861.58893145,0.00032391,2]
[402133562,1768540238716,-661.47354818,0.00032392,2]
[402133563,1768540238726,-600.0,0.00032397,7]
[402133564,1768540238735,-500.0,0.00032401,7]
[402133565,1768540238744,-600.0,0.00032476,7]
[402133566,1768540238754,-500.0,0.00032667,7]
[402133567,1768540238763,-500.0,0.00032742,7]
[402133568,1768540238772,-600.0,0.00032768,7]
[402133569,1768540238782,-600.0,0.00032796,7]
[402133570,1768540238791,-500.0,0.00032803,7]
[402133571,1768540238800,-500.0,0.0003282,7]
[402133572,1768540238810,-500.0,0.00032877,2]
[402133573,1768540238820,-166.66,0.00032912,2]
[402133574,1768540238829,-500.0,0.00032932,2]
[402133575,1768540238838,-600.0,0.00032947,7]
[402133576,1768540238848,-600.0,0.0003298,7]
[402133577,1768540238858,-362.81384374,0.00032987,2]
[402133578,1768540238868,-633.0,0.00033,120]
[402133579,1768540238877,-500.0,0.00033011,7]
[402133580,1768540238887,-600.0,0.00033066,7]
[402133581,1768540238896,-500.0,0.00033074,7]
[402133582,1768540238905,-600.0,0.00033093,7]
[402133583,1768540238914,-500.0,0.00033132,7]
[402133584,1768540238923,-157.11,0.0003319,2]
[402133585,1768540238932,-500.0,0.00033223,7]
[402133586,1768540238942,-568.4,0.00033245,5]
[402133587,1768540238951,-600.0,0.00033449,7]
[402133588,1768540238960,-150.0,0.000335,30]
[402133589,1768540238969,-500.0,0.00033649,7]
[402133590,1768540238978,-500.0,0.00033718,7]
[402133591,1768540238987,-510.0,0.00033745,9]
[402133592,1768540238996,-500.0,0.00033919,7]
[402133593,1768540239005,-288.66752471,0.00033945,2]
[402133594,1768540239015,-176.23844907,0.00033972,7]
[402133595,1768540239025,-600.0,0.00033984,7]
[402133596,1768540239036,-600.0,0.0003417,7]
[402133597,1768540239045,-532.39,0.00034246,120]
[402133598,1768540239054,-557.53,0.00034246,120]
[402133599,1768540239065,-1500.0,0.00034349,120]
[402133600,1768540239075,-150.0,0.00034356,2]
[402133601,1768540239085,-935.31880376,0.00034359,7]
[402133602,1768540239095,-157.11,0.00034402,2]
[402133603,1768540239104,-500.0,0.00034416,7]
[402133604,1768540239114,-328.71656214,0.00034434,7]
[402133605,1768540239126,-500.0,0.00034446,7]
[402133606,1768540239136,-532.39,0.00034465,120]
[402133607,1768540239145,-557.53,0.00034465,120]
[402133608,1768540239154,-500.0,0.00034475,7]
[402133609,1768540239165,-600.0,0.00034484,7]
[402133610,1768540239174,-861.58893145,0.00034501,2]
[402133611,1768540239183,-661.47354818,0.00034502,2]
[402133612,1768540239193,-800.0,0.0003452,14]
[402133613,1768540239202,-500.0,0.0003452,14]
[402133614,1768540239211,-1600.0,0.0003452,14]
[402133615,1768540239220,-600.0,0.00034561,7]
[402133616,1768540239230,-600.0,0.00034571,7]
[402133617,1768540239239,-776.78156,0.000346,10]
[402133618,1768540239249,-500.0,0.00034652,7]
[402133619,1768540239258,-500.0,0.0003466,7]
[402133620,1768540239268,-500.0,0.00034682,120]
[402133621,1768540239277,-532.39,0.00034684,120]
[402133622,1768540239287,-557.53,0.00034684,120]
[402133623,1768540239296,-600.0,0.00034736,7]
[402133624,1768540239305,-150.0,0.00034795,2]
[402133625,1768540239314,-150.0,0.00034795,2]
[402133626,1768540239323,-150.0,0.00034795,2]
[402133627,1768540239332,-150.0,0.00034795,2]
[402133628,1768540239341,-600.0,0.00034816,7]
[402133629,1768540239350,-1227.81,0.0003486,30]
[402133630,1768540239359,-1227.81,0.0003486,30]
[402133631,1768540239368,-1227.81,0.0003486,30]
[402133632,1768540239377,-1227.81,0.0003486,30]
[402133633,1768540239386,-1227.81,0.0003486,30]
[402133634,1768540239396,-1227.81,0.0003486,30]
[402133635,1768540239405,-1227.81,0.0003486,30]
[402133636,1768540239414,-1227.81,0.0003486,30]
[402133637,1768540239423,-1227.81,0.0003486,30]
[402133638,1768540239433,-1227.81,0.0003486,30]
[402133639,1768540239441,-1227.81,0.0003486,30]
[402133640,1768540239450,-1227.81,0.0003486,30]
[402133641,1768540239459,-1227.81,0.0003486,30]
[402133642,1768540239468,-1227.81,0.0003486,30]
[402133643,1768540239478,-1227.81,0.0003486,30]
[402133644,1768540239487,-1227.81,0.0003486,30]
[402133645,1768540239497,-1227.81,0.0003486,30]
[402133646,1768540239506,-1227.81,0.0003486,30]
[402133647,1768540239515,-1227.81,0.0003486,30]
[402133648,1768540239524,-1227.81,0.0003486,30]
[402133649,1768540239534,-1227.81,0.0003486,30]
[402133650,1768540239542,-1227.81,0.0003486,30]
[402133651,1768540239552,-1227.81,0.0003486,30]
[402133652,1768540239561,-398.12,0.0003486,30]
[402133653,1768540239570,-834.0,0.00034873,11]
[402133654,1768540239579,-532.39,0.00034904,120]
[402133655,1768540239589,-557.53,0.00034904,120]
[402133656,1768540239598,-500.0,0.00035,120]
[402133657,1768540239608,-150.0,0.00035072,2]
[402133658,1768540239617,-5296.42094924,0.00035079,2]
[402133659,1768540239628,-600.0,0.00035121,30]
[402133660,1768540239638,-532.39,0.00035123,120]
[402133661,1768540239648,-557.53,0.00035123,120]
[402133662,1768540239658,-500.0,0.00035127,30]
[402133663,1768540239667,-568.4,0.00035132,7]
[402133664,1768540239676,-500.0,0.00035147,30]
[402133665,1768540239685,-3078.73729356,0.00035164,2]
[402133666,1768540239695,-150.0,0.00035206,20]
[402133667,1768540239704,-4282.5760257,0.00035207,2]
[402133668,1768540239714,-286.8589,0.0003522,30]
[402133669,1768540239723,-500.0,0.00035257,30]
[402133670,1768540239732,-176.27487689,0.0003527,30]
[402133671,1768540239742,-5738.0,0.00035327,2]
[402133672,1768540239751,-200.0,0.0003533,10]
[402133673,1768540239760,-200.0,0.00035331,10]
[402133674,1768540239769,-800.0,0.00035342,14]
[402133675,1768540239778,-1600.0,0.00035342,14]
[402133676,1768540239787,-532.39,0.00035342,120]
[402133677,1768540239795,-557.53,0.00035342,120]
[402133678,1768540239804,-500.0,0.00035343,30]
[402133679,1768540239813,-1000.0,0.00035349,2]
[402133680,1768540239822,-600.0,0.00035352,30]
[402133681,1768540239831,-1000.0,0.00035356,2]
[402133682,1768540239840,-1000.0,0.00035363,2]
[402133683,1768540239849,-150.0,0.00035365,2]
[402133684,1768540239858,-1000.0,0.00035366,2]
[402133685,1768540239866,-1000.0,0.00035376,2]
[402133686,1768540239876,-1000.0,0.00035383,2]
[402133687,1768540239885,-1000.0,0.00035383,2]
[402133688,1768540239894,-1000.0,0.00035384,2]
[402133689,1768540239903,-1000.0,0.00035389,2]
[402133690,1768540239911,-1000.0,0.00035395,2]
[402133691,1768540239920,-853.0,0.000354,11]
[402133692,1768540239929,-1000.0,0.000354,2]
[402133693,1768540239940,-1000.0,0.00035413,2]
[402133694,1768540239949,-600.0,0.00035422,30]
[402133695,1768540239959,-1000.0,0.00035424,2]
[402133696,1768540239968,-1000.0,0.00035434,2]
[402133697,1768540239979,-1000.0,0.00035443,2]
[402133698,1768540239988,-1000.0,0.00035446,2]
[402133699,1768540239998,-1000.0,0.00035448,2]
[402133700,1768540240010,-500.0,0.0003545,30]
[402133701,1768540240020,-1000.0,0.00035456,2]
[402133702,1768540240030,-1000.0,0.00035477,2]
[402133703,1768540240039,-1000.0,0.00035479,2]
[402133704,1768540240049,-1000.0,0.0003548,2]
[402133705,1768540240060,-1000.0,0.00035484,2]
[402133706,1768540240070,-1000.0,0.00035488,2]
[402133707,1768540240080,-1000.0,0.0003549,2]
[402133708,1768540240089,-1000.0,0.00035499,2]
[402133709,1768540240099,-1000.0,0.00035501,2]
[402133710,1768540240110,-1000.0,0.0003551,2]
[402133711,1768540240121,-1000.0,0.00035511,2]
[402133712,1768540240130,-1000.0,0.00035512,2]
[402133713,1768540240140,-1000.0,0.00035512,2]
[402133714,1768540240150,-1000.0,0.00035514,2]
[402133715,1768540240159,-1000.0,0.0003552,2]
[402133716,1768540240168,-1000.0,0.00035528,2]
[402133717,1768540240177,-1000.0,0.00035529,2]
[402133718,1768540240187,-1000.0,0.00035533,2]
[402133719,1768540240196,-1000.0,0.00035536,2]
[402133720,1768540240206,-1000.0,0.00035538,2]
[402133721,1768540240216,-1000.0,0.00035542,2]
[402133722,1768540240227,-1000.0,0.00035544,2]
[402133723,1768540240238,-1000.0,0.00035555,2]
[402133724,1768540240247,-532.39,0.00035561,120]
[402133726,1768540240257,-557.53,0.00035561,120]
[402133727,1768540240267,-1041.86673573,0.00035564,2]
[402133729,1768540240278,-1000.0,0.00035568,2]
[402133730,1768540240287,-1000.0,0.00035578,2]
[402133737,1768540240517,-409.96687693,0.00035578,2]
[402133738,1768540240579,-1000.0,0.00035579,2]
[402133739,1768540240590,-1000.0,0.00035591,2]
[402133740,1768540240599,-1000.0,0.00035592,2]
[402133741,1768540240608,-193.6313068,0.000356,30]
[402133742,1768540240618,-1000.0,0.00035602,2]
[402133743,1768540240629,-1000.0,0.00035604,2]
[402133744,1768540240638,-228.97527196,0.00035606,2]
[402133745,1768540240648,-1000.0,0.0003561,2]
[402133746,1768540240657,-1000.0,0.00035612,2]
[402133747,1768540240666,-155.31781772,0.00035613,14]
[402133748,1768540240676,-1000.0,0.00035614,2]
[402133749,1768540240685,-177.72949484,0.00035614,20]
[402133750,1768540240694,-507.92729666,0.00035614,20]
[402133751,1768540240703,-250.0,0.00035614,20]
[402133752,1768540240712,-586.88085669,0.00035614,20]
[402133753,1768540240722,-250.0,0.00035614,20]
[402133754,1768540240731,-500.0,0.00035614,20]
[402133755,1768540240740,-250.0,0.00035614,20]
[402133756,1768540240750,-500.0,0.00035614,20]
[402133757,1768540240760,-500.0,0.00035614,20]
[402133759,1768540240769,-500.0,0.00035614,20]
[402133760,1768540240778,-250.0,0.00035614,20]
[402133761,1768540240787,-500.0,0.00035614,20]
[402133762,1768540240796,-250.0,0.00035614,20]
[402133763,1768540240804,-500.0,0.00035614,20]
[402133764,1768540240813,-250.0,0.00035614,20]
[402133765,1768540240822,-250.0,0.00035614,20]
[402133766,1768540240831,-500.0,0.00035614,20]
[402133767,1768540240840,-500.0,0.00035614,20]
[402133768,1768540240850,-250.0,0.00035614,20]
[402133769,1768540240859,-500.0,0.00035614,20]
[402133770,1768540240868,-250.0,0.00035614,20]
[402133771,1768540240877,-250.0,0.00035614,20]
[402133772,1768540240886,-602.58742295,0.00035614,20]
[402133773,1768540240895,-350.03813948,0.00035614,20]
[402133774,1768540240904,-1000.0,0.00035614,20]
[402133775,1768540240914,-1000.0,0.00035614,20]
[402133776,1768540240922,-1000.0,0.00035614,20]
[402133777,1768540240931,-2500.0,0.00035614,20]
[402133778,1768540240940,-1500.0,0.00035614,20]
[402133779,1768540240950,-1000.0,0.00035614,20]
[402133780,1768540240959,-2500.0,0.00035614,20]
[402133781,1768540240968,-1500.0,0.00035614,20]
[402133782,1768540240978,-1000.0,0.00035614,20]
[402133783,1768540240987,-2500.0,0.00035614,20]
[402133784,1768540240996,-1500.0,0.00035614,20]
[402133785,1768540241005,-1000.0,0.00035614,20]
[402133786,1768540241015,-2500.0,0.00035614,20]
[402133787,1768540241026,-1500.0,0.00035614,20]
[402133788,1768540241035,-1000.0,0.00035614,20]
[402133789,1768540241044,-2500.0,0.00035614,20]
[402133790,1768540241055,-1500.0,0.00035614,20]
[402133791,1768540241064,-1000.0,0.00035614,20]
[402133792,1768540241073,-2500.0,0.00035614,20]
[402133793,1768540241082,-1500.0,0.00035614,20]
[402133794,1768540241091,-1000.0,0.00035614,20]
[402133795,1768540241100,-250.0,0.00035614,20]
[402133796,1768540241109,-2500.0,0.00035614,20]
[402133797,1768540241118,-1500.0,0.00035614,20]
[402133798,1768540241127,-2500.0,0.00035614,20]
[402133799,1768540241141,-1000.0,0.00035614,20]
[402133800,1768540241150,-250.0,0.00035614,20]
[402133801,1768540241159,-2500.0,0.00035614,20]
[402133802,1768540241168,-1500.0,0.00035614,20]
[402133803,1768540241177,-2500.0,0.00035614,20]
[402133804,1768540241187,-151.0,0.00035614,20]
[402133805,1768540241196,-1000.0,0.00035614,20]
[402133806,1768540241206,-250.0,0.00035614,20]
[402133807,1768540241216,-2500.0,0.00035614,20]
[402133808,1768540241225,-1500.0,0.00035614,20]
[402133809,1768540241235,-2500.0,0.00035614,20]
[402133810,1768540241244,-500.0,0.00035614,20]
[402133811,1768540241254,-2500.0,0.00035614,20]
[402133812,1768540241263,-250.0,0.00035614,20]
[402133813,1768540241272,-1500.0,0.00035614,20]
[402133814,1768540241281,-2500.0,0.00035614,20]
[402133815,1768540241290,-500.0,0.00035614,20]
[402133816,1768540241299,-2500.0,0.00035614,20]
[402133817,1768540241309,-250.0,0.00035614,20]
[402133818,1768540241318,-1500.0,0.00035614,20]
[402133819,1768540241326,-2500.0,0.00035614,20]
[402133820,1768540241335,-500.0,0.00035614,20]
[402133821,1768540241344,-250.0,0.00035614,20]
[402133822,1768540241354,-2500.0,0.00035614,20]
[402133823,1768540241364,-500.0,0.00035614,20]
[402133824,1768540241373,-138.74548579,0.00035614,20]
[402133825,1768540241387,-111.25451421,0.00035614,20]
[402133826,1768540241396,-448.45441465,0.00035614,20]
[402133827,1768540241411,-2051.54558535,0.00035614,20]
[402133828,1768540241420,-500.0,0.00035614,20]
[402133829,1768540241429,-250.0,0.00035614,20]
[402133830,1768540241438,-2461.88080846,0.00035614,20]
[402133831,1768540241451,-38.11919154,0.00035614,20]
[402133832,1768540241460,-500.0,0.00035614,20]
[402133833,1768540241469,-262.29171236,0.00035614,20]
[402133834,1768540241478,-775.56398224,0.00035614,20]
[402133835,1768540241489,-257.04848281,0.00035614,20]
[402133836,1768540241500,-1467.38753495,0.00035614,20]
[402133837,1768540241509,-500.0,0.00035614,20]
[402133838,1768540241518,-2500.0,0.00035614,20]
[402133839,1768540241528,-500.0,0.00035614,20]
[402133840,1768540241537,-2500.0,0.00035614,20]
[402133841,1768540241546,-500.0,0.00035614,20]
[402133842,1768540241555,-500.0,0.00035614,20]
[402133843,1768540241565,-500.0,0.00035614,20]
[402133844,1768540241574,-500.0,0.00035614,20]
[402133845,1768540241583,-500.0,0.00035614,20]
[402133846,1768540241592,-500.0,0.00035614,20]
[402133847,1768540241602,-500.0,0.00035614,20]
[402133848,1768540241611,-500.0,0.00035614,20]
[402133849,1768540241620,-500.0,0.00035614,20]
[402133850,1768540241630,-500.0,0.00035614,20]
[402133851,1768540241640,-153.65156995,0.00035614,20]
[402133852,1768540241649,-500.0,0.00035614,20]
[402133853,1768540241659,-228.82569288,0.00035614,20]
[402133854,1768540241668,-8568.21857437,0.00035615,14]
[402133855,1768540241684,-500.0,0.00035615,14]
[402133856,1768540241695,-1402.02305659,0.00035615,14]
[402133857,1768540241710,-2581.1780619,0.00035615,14]
[402133858,1768540241721,-471.47659326,0.00035615,14]
[402133859,1768540241735,-661.68,0.00035615,14]
[402133860,1768540241960,-33176.19843506,0.00035615,14]
[402133861,1768540241971,-150.0,0.00035616,5]
[402133862,1768540241980,-151.0,0.00035616,10]
[402133863,1768540241992,-567.28,0.00035616,10]
[402133864,1768540242002,-1065.53683414,0.00035616,2]
[402133865,1768540242012,-501.8858786,0.00035616,10]
[402133866,1768540242022,-500.0,0.00035616,10]
[402133867,1768540242031,-500.0,0.00035616,10]
[402133868,1768540242040,-180.13376771,0.00035616,10]
[402133869,1768540242049,-500.0,0.00035616,10]
[402133870,1768540242058,-500.0,0.00035616,10]
[402133871,1768540242067,-500.0,0.00035616,10]
[402133872,1768540242076,-350.03178968,0.00035616,10]
[402133873,1768540242086,-500.0,0.00035616,10]
[402133874,1768540242096,-200.0,0.00035616,2]
[402133875,1768540242106,-500.0,0.00035616,10]
[402133876,1768540242116,-500.0,0.00035616,7]
[402133877,1768540242128,-500.0,0.00035616,10]
[402133878,1768540242138,-500.0,0.00035616,10]
[402133879,1768540242149,-500.0,0.00035616,10]
[402133880,1768540242159,-555.13,0.00035616,10]
[402133881,1768540242169,-589.52206061,0.00035616,10]
[402133882,1768540242178,-500.0,0.00035616,10]
[402133883,1768540242189,-500.0,0.00035616,10]
[402133884,1768540242199,-696.2,0.00035616,10]
[402133885,1768540242209,-500.0,0.00035616,10]
[402133886,1768540242218,-500.0,0.00035616,10]
[402133887,1768540242227,-500.0,0.00035616,10]
[402133888,1768540242236,-500.0,0.00035616,10]
[402133889,1768540242245,-604.53,0.00035616,10]
[402133890,1768540242254,-500.0,0.00035616,10]
[402133891,1768540242263,-500.0,0.00035616,10]
[402133892,1768540242272,-500.0,0.00035616,10]
[402133893,1768540242283,-500.0,0.00035616,10]
[402133894,1768540242295,-589.27,0.00035616,10]
[402133895,1768540242303,-500.0,0.00035616,10]
[402133896,1768540242312,-500.0,0.00035616,10]
[402133897,1768540242321,-500.0,0.00035616,10]
[402133898,1768540242331,-500.0,0.00035616,10]
[402133899,1768540242339,-506.7621757,0.00035616,10]
[402133900,1768540242350,-510.61606656,0.00035616,10]
[402133901,1768540242360,-500.0,0.00035616,10]
[402133902,1768540242371,-1428.02,0.00035616,10]
[402133903,1768540242381,-500.0,0.00035616,10]
[402133904,1768540242390,-500.0,0.00035616,10]
[402133905,1768540242400,-500.0,0.00035616,10]
[402133906,1768540242410,-500.0,0.00035616,10]
[402133907,1768540242419,-593.31,0.00035616,10]
[402133908,1768540242428,-788.58,0.00035616,10]
[402133909,1768540242437,-500.0,0.00035616,10]
[402133910,1768540242446,-500.0,0.00035616,10]
[402133911,1768540242456,-500.0,0.00035616,10]
[402133912,1768540242465,-500.0,0.00035616,10]
[402133913,1768540242476,-500.0,0.00035616,10]
[402133914,1768540242485,-1149.82,0.00035616,10]
[402133915,1768540242495,-500.0,0.00035616,10]
[402133916,1768540242504,-500.0,0.00035616,10]
[402133917,1768540242514,-500.0,0.00035616,10]
[402133918,1768540242522,-500.0,0.00035616,10]
[402133919,1768540242531,-500.0,0.00035616,10]
[402133920,1768540242541,-500.0,0.00035616,10]
[402133921,1768540242550,-500.0,0.00035616,10]
[402133922,1768540242560,-700.17,0.00035616,10]
[402133923,1768540242570,-500.0,0.00035616,10]
[402133924,1768540242579,-500.0,0.00035616,10]
[402133925,1768540242588,-497.75550889,0.00035616,10]
[402133926,1768540242597,-500.0,0.00035616,10]
[402133927,1768540242606,-500.0,0.00035616,10]
[402133928,1768540242615,-500.0,0.00035616,10]
[402133929,1768540242632,-1082.88,0.00035616,10]
[402133930,1768540242649,-500.0,0.00035616,10]
[402133931,1768540242660,-504.51087068,0.00035616,10]
[402133932,1768540242675,-500.0,0.00035616,10]
[402133933,1768540242689,-1091.37,0.00035616,10]
[402133934,1768540242704,-500.0,0.00035616,10]
[402133935,1768540242718,-656.01,0.00035616,10]
[402133936,1768540242730,-385.01759831,0.00035616,10]
[402133937,1768540242744,-500.0,0.00035616,10]
[402133938,1768540242758,-500.0,0.00035616,10]
[402133939,1768540242773,-500.0,0.00035616,10]
[402133940,1768540242786,-500.0,0.00035616,10]
[402133941,1768540242801,-500.0,0.00035616,2]
[402133942,1768540242815,-500.0,0.00035616,10]
[402133943,1768540242830,-500.0,0.00035616,10]
[402133944,1768540242844,-500.0,0.00035616,10]
[402133945,1768540242858,-500.0,0.00035616,10]
[402133946,1768540242872,-500.0,0.00035616,10]
[402133947,1768540242887,-500.0,0.00035616,10]
[402133948,1768540242900,-500.0,0.00035616,10]
[402133949,1768540242913,-684.28,0.00035616,10]
[402133950,1768540242925,-583.05,0.00035616,10]
[402133951,1768540242937,-595.99880654,0.00035616,10]
[402133952,1768540242953,-500.0,0.00035616,10]
[402133953,1768540242964,-500.0,0.00035616,10]
[402133954,1768540242975,-500.0,0.00035616,10]
[402133955,1768540242988,-500.0,0.00035616,10]
[402133956,1768540243002,-500.0,0.00035616,10]
[402133957,1768540243015,-500.0,0.00035616,10]
[402133958,1768540243026,-500.0,0.00035616,10]
[402133959,1768540243037,-751.2,0.00035616,10]
[402133960,1768540243051,-500.0,0.00035616,10]
[402133961,1768540243070,-500.0,0.00035616,10]
[402133962,1768540243087,-662.29,0.00035616,10]
[402133963,1768540243103,-688.57,0.00035616,10]
[402133964,1768540243118,-647.49,0.00035616,10]
[402133965,1768540243135,-1117.06,0.00035616,10]
[402133966,1768540243149,-500.0,0.00035616,10]
[402133967,1768540243164,-584.07,0.00035616,10]
[402133968,1768540243178,-500.0,0.00035616,10]
[402133969,1768540243192,-636.52,0.00035616,10]
[402133970,1768540243206,-500.0,0.00035616,10]
[402133971,1768540243222,-500.0,0.00035616,10]
[402133972,1768540243236,-500.0,0.00035616,10]
[402133973,1768540243248,-641.82,0.00035616,10]